[Event "Nakhchivan Open 2022"]
[Site "Nakhchivan"]
[Date "2022.05.10"]
[Round "4.6"]
[White "Azadaliyev, Jahandar"]
[Black "Mahdavi, Reza"]
[Result "1/2-1/2"]
[ECO "E73"]
[WhiteElo "2088"]
[BlackElo "2303"]
[Annotator "TA"]
[PlyCount "139"]
[EventDate "2022.05.08"]
[EventType "swiss"]
[EventCountry "AZE"]
[SourceTitle "playchess.com"]
[Source "ChessBase"]
[SourceQuality "1"]
[TimeControl "5400+30"]

{[%evp 21,139,48,29,28,29,31,25,25,25,27,61,0,0,24,45,58,52,42,39,41,41,27,45,29,25,24,16,-26,7,0,0,0,33,34,34,31,33,29,30,26,48,0,16,15,21,0,0,0,13,0,0,0,0,0,13,11,34,19,67,60,113,19,11,0,0,0,0,0,0,0,0,0,0,-2,-4,-168,-19,-99,-17,-216,0,0,0,0,0,0,0,0,0,0,0,0,0,0,0,0,0,0,0,0,0,0,0,0,0,0,0,0,0,0,0,0,0,0,0,0,0,0,0,0]} 1. d4 {[%emt 0:00:01]} Nf6 {[%emt 0:00:05]} 2. c4 {[%emt 0:00:06]} g6 {[%emt 0:00:03]} 3. Nc3 {[%emt 0:00:03]} Bg7 {[%emt 0:00:04]} 4. e4 {[%emt 0:00:06]} d6 {[%emt 0:00:04]} 5. Be2 {[%emt 0:00:59]} O-O {[%emt 0:00:07]} 6. Bg5 {[%emt 0:01:13]} c5 {[%emt 0:00:10]} 7. d5 {[%emt 0:00:51]} e6 {[%emt 0:00:11]} 8. Qd2 {[%emt 0:01:20]} exd5 {[%emt 0:00:06]} 9. exd5 {[%emt 0:02:02]} Re8 {[%emt 0:01:20]} 10. Nf3 {[%emt 0:00:37]} Bg4 {[%emt 0:00:11]} 11. O-O {[%emt 0:00:43]} Nbd7 {[%emt 0:01:32]} 12. Rfe1 {[%emt 0:03:12] E75: King's Indian: Averbakh Variation: 6...c5 7 d5 e6.} a6 {[%emt 0:00:08]} 13. h3 {[%emt 0:03:54]} Bxf3 {[%emt 0:00:09]} 14. Bxf3 {[%emt 0:00:09] White has an edge.} Qa5 {[%emt 0:07:27]} 15. Bf4 {[%emt 0:13:06]} Bf8 {[%emt 0:02:41] [#]} 16. Qd3 $146 {[%emt 0:06:15]} (16. Be2 $14) ({Predecessor:} 16. g4 Ne5 17. Bxe5 Rxe5 18. Rxe5 dxe5 19. g5 Nd7 20. Qe2 Qd8 21. Ne4 f5 22. gxf6 Nxf6 {1-0 (33) Oppermann,P (1736)-Niebuhr,G (1863) Binz 2013}) 16... Rxe1+ {[%emt 0:08:31]} 17. Rxe1 {[%emt 0:00:02]} Re8 {[%emt 0:00:01]} 18. Rxe8 {[%emt 0:04:55]} Nxe8 {[%emt 0:00:28]} 19. Qe2 {[%emt 0:00:01] Against Ne5} Qd8 {[%emt 0:00:48]} 20. Bg4 {[%emt 0:03:27]} f5 {[%emt 0:07:19]} 21. Bf3 {[%emt 0:05:27]} Nc7 {[%emt 0:00:13]} 22. Qd2 {[%emt 0:05:14]} Qe7 {[%emt 0:07:36]} 23. a3 {[%emt 0:02:58]} Bg7 {[%emt 0:05:30]} 24. b4 {[%emt 0:05:37]} Be5 {[%emt 0:00:38]} (24... g5 $5 {[%cal Rg5f4]} 25. Bh2 (25. Bxg5 Bxc3 26. Bxe7 Bxd2 $17) 25... b5 $11) 25. Qe3 {[%emt 0:03:48]} b6 {[%emt 0:09:20]} 26. Na4 {[%emt 0:03:31] Hoping for Bxe5.} Na8 {[%emt 0:10:01]} 27. bxc5 {[%emt 0:05:09]} bxc5 {[%emt 0:00:02]} 28. Bg5 {[%emt 0:01:12]} Qe8 {[%emt 0:01:40]} 29. g4 {[%emt 0:03:42]} Nc7 {[%emt 0:04:02]} 30. Kg2 {[%emt 0:01:19]} Qf8 {[%emt 0:08:53]} 31. Bh6 {[%emt 0:04:18]} (31. gxf5 $1 $14 {deserves consideration.} gxf5 32. Bd1) 31... Bg7 {[%emt 0:05:47]} 32. Bxg7 {[%emt 0:01:18]} Kxg7 {[%emt 0:00:12]} 33. Qc3+ {[%emt 0:03:28]} Qf6 {[%emt 0:00:26]} 34. Qa5 $36 {[%emt 0:00:38][%mdl 2048] Black is under pressure.} Qd8 {[%emt 0:00:04]} 35. Qc3+ {[%emt 0:04:57]} Kg8 {[%emt 0:01:34]} 36. Nb2 {[%emt 0:04:22]} Ne5 {[%emt 0:04:22]} 37. Nd3 {[%emt 0:02:00]} Nxd3 {[%emt 0:00:24]} (37... fxg4 {keeps more tension.} 38. hxg4 Nxf3 39. Kxf3 Qh4) 38. Qxd3 $11 {[%emt 0:00:08][%mdl 4096] Endgame KQB-KQN} Qd7 {[%emt 0:04:29]} 39. Qb3 {[%emt 0:00:39]} Kf7 {[%emt 0:03:28]} (39... Ne8 $11 {was preferrable.}) 40. Qb2 {[%emt 0:00:39]} Qd8 {[%emt 0:00:47] Against Qh8} ({Black should play} 40... fxg4 $14 41. hxg4 (41. Bxg4 Qd8 $11) 41... Qd8) 41. Qd2 {[%emt 0:03:15] White is more active.} ({Better is} 41. gxf5 $1 $16 gxf5 42. Bh5+ Kg8 43. Kf1) 41... fxg4 {[%emt 0:03:11]} 42. Bxg4 {[%emt 0:00:33]} h5 {[%emt 0:00:34]} 43. Bf3 {[%emt 0:00:44]} Ne8 {[%emt 0:00:15]} 44. Qe3 {[%emt 0:01:08]} Qe7 45. Be4 {[%emt 0:00:51][%cal Oe4g6] Strongly threatening Bxg6+!} Kg7 {[%emt 0:02:04]} 46. Qc3+ {[%emt 0:00:43]} Nf6 {[%emt 0:00:48]} 47. f3 {[%emt 0:00:07]} h4 {[%emt 0:01:08]} 48. Qb2 $2 {[%emt 0:00:57]} (48. Kf2 $11) 48... Kh6 {[%emt 0:00:29]} (48... Kh7 $1 $19 49. Qc2 Qg7) 49. Kf2 {[%emt 0:01:07] [#]} (49. Qd2+ $11 g5 50. Bb1) 49... Qg7 {[%emt 0:01:26]} ({Much weaker is} 49... Nxe4+ $6 50. fxe4 Qxe4 51. Qh8+ Kg5 52. Qd8+ Kh6 53. Qh8+ Kg5 54. Qd8+ Kh6 55. Qh8+ $11) (49... Kh7 $1 $17 50. Qb1 Qg7) 50. Qb8 $2 {[%emt 0:01:02] [#]} (50. Qd2+ $11 {and White is okay.} g5 51. Qe3) 50... Nxe4+ $2 {[%emt 0:00:11]} (50... Nh5 $1 $19 {And now ...Qf6 would win.} 51. Ke1 (51. Qxd6 $2 Qb2+ 52. Kg1 Qc1+ 53. Kh2 Qd2+ 54. Kg1 Qe3+ 55. Kg2 Nf4+ 56. Qxf4+ Qxf4 $19) 51... Qf6) 51. fxe4 $19 {[%emt 0:00:00] KQ-KQ. The position is equal.} Qd4+ {[%emt 0:00:01]} 52. Kf3 {[%emt 0:00:22]} Qd3+ {[%emt 0:00:02]} 53. Kf2 {[%emt 0:00:14]} Qg3+ {[%emt 0:01:12]} 54. Ke2 {[%emt 0:00:03]} Qg2+ {[%emt 0:00:35]} 55. Kd1 {[%emt 0:00:13]} Qf1+ {[%emt 0:00:26]} 56. Kd2 {[%emt 0:00:05]} Qf2+ {[%emt 0:00:05]} 57. Kc1 {[%emt 0:01:36]} Qe3+ {[%emt 0:01:23]} 58. Kb2 {[%emt 0:00:19]} Qd2+ {[%emt 0:01:35]} 59. Kb3 {[%emt 0:00:35]} Qd3+ {[%emt 0:00:50]} 60. Kb2 {[%emt 0:00:04]} Qd4+ {[%emt 0:00:05]} 61. Kb3 {[%emt 0:00:17]} Qe5 {[%emt 0:00:26]} 62. Qd8 {[%emt 0:00:53]} Kh5 {[%emt 0:00:23]} 63. Qd7 {[%emt 0:00:26] aiming for Qg4+.} Kh6 {[%emt 0:02:14]} 64. Qd8 {[%emt 0:00:05]} Kh5 {[%emt 0:01:22]} 65. Qd7 {[%emt 0:00:02]} Qxe4 {[%emt 0:00:24]} 66. Qxd6 {[%emt 0:00:12]} Qd3+ {[%emt 0:00:05]} 67. Kb2 {[%emt 0:00:05]} Qd2+ {[%emt 0:01:01]} 68. Kb3 {[%emt 0:00:14]} Qd3+ {[%emt 0:00:01]} 69. Kb2 {[%emt 0:00:05]} Qd2+ {[%emt 0:01:11]} 70. Kb3 {[%emt 0:00:00] Weighted Error Value: White=0.28 (precise) /Black=0.19 (very precise)} 1/2-1/2

[Event "Nakhchivan Open 2022"]
[Site "Nakhchivan"]
[Date "2022.05.11"]
[Round "5.1"]
[White "Shahaliyev, Ismayil"]
[Black "Asgari, Morteza"]
[Result "1-0"]
[ECO "D71"]
[WhiteElo "2386"]
[BlackElo "2244"]
[Annotator "TA"]
[PlyCount "89"]
[EventDate "2022.05.08"]
[EventType "swiss"]
[EventCountry "AZE"]
[SourceTitle "playchess.com"]
[Source "ChessBase"]
[SourceQuality "1"]
[TimeControl "5400+30"]

{[%evp 17,89,11,22,3,37,21,39,45,69,32,35,7,7,4,2,14,43,51,40,43,71,81,77,83,84,85,83,96,162,147,235,234,236,236,248,253,249,250,325,231,253,252,237,233,216,140,189,191,317,307,336,363,340,289,370,352,370,343,282,272,472,468,436,420,634,616,2368,11218,2011,2011,12158,5739,1610,1199]} 1. d4 {[%emt 0:00:09]} Nf6 {[%emt 0:00:17]} 2. c4 {[%emt 0:00:13]} g6 {[%emt 0:00:53]} 3. g3 {[%emt 0:00:09]} Bg7 {[%emt 0:01:56]} 4. Bg2 {[%emt 0:00:07]} d5 {[%emt 0:00:18]} 5. cxd5 {[%emt 0:00:09]} Nxd5 {[%emt 0:00:06]} 6. Nf3 {[%emt 0:00:05]} Nb6 {[%emt 0:00:24]} 7. Nc3 {[%emt 0:00:31]} Nc6 {[%emt 0:00:16]} 8. e3 {[%emt 0:00:06]} O-O {[%emt 0:00:12]} 9. O-O {[%emt 0:00:05]} Re8 {[%emt 0:00:11]} 10. Nh4 {[%emt 0:00:06] D76: Fianchetto Grünfeld: Main Line with 7...Nb6.} e6 {[%emt 0:12:42]} (10... e5 $5 {[%cal Re5d4]}) 11. f4 {[%emt 0:12:30]} a5 {[%emt 0:03:33]} 12. Nf3 {White is slightly better.} Bd7 {[%emt 0:15:33] [#]} 13. Ne4 $146 {[%emt 0:21:02]} ({Predecessor:} 13. Rb1 a4 14. Qe2 Qe7 15. Ne4 Nb4 16. a3 Na6 17. Bd2 Bc6 18. Nc3 Bd5 19. Rfe1 {1-0 (63) Holm,K (2330)-Elishev,I (2153) Caleta 2015}) 13... Nb4 {[%emt 0:06:49]} 14. Nc5 {[%emt 0:01:31]} Bc6 {[%emt 0:02:22]} 15. b3 {[%emt 0:11:28]} Nd7 {[%emt 0:05:18][%cal Bb6d7,Bd7c5,Bc5e4,Be4c3][%mdl 32] ...Nxc5 is the strong threat.} 16. a3 {[%emt 0:02:08]} Nxc5 {[%emt 0:03:40]} 17. axb4 {[%emt 0:00:12]} Ne4 {[%emt 0:04:58]} 18. bxa5 {[%emt 0:00:52]} Bb5 {[%emt 0:00:10]} 19. Re1 {[%emt 0:00:28] White stays focused until the end.} c5 {[%emt 0:02:49]} 20. Ne5 {[%emt 0:05:33]} Nc3 {[%emt 0:02:01]} 21. Qd2 {[%emt 0:03:10]} cxd4 {[%emt 0:01:30]} 22. Bb2 $1 {[%emt 0:01:58]} (22. Qxd4 Qc7 23. Bd2 Ne2+ 24. Rxe2 Bxe2 $15) (22. Bxb7 Rxa5 23. Rxa5 Qxa5 $14) 22... f6 {[%emt 0:13:12]} (22... Ba6 $16) 23. Nc4 $1 $18 {[%emt 0:01:19]} Bxc4 {[%emt 0:04:54]} (23... f5 $16) 24. bxc4 {[%emt 0:00:27]} f5 {[%emt 0:00:09]} 25. exd4 {[%emt 0:08:10]} ({But not} 25. Bxb7 $6 dxe3 26. Qc1 (26. Qxe3 Bd4 $15) 26... Qd3 $16) 25... Qxd4+ {[%emt 0:06:10]} 26. Qxd4 {[%emt 0:00:19]} Bxd4+ {[%emt 0:00:12] [#]} 27. Kf1 $1 {[%emt 0:00:12]} Re7 {[%emt 0:02:01]} 28. Rac1 {[%emt 0:11:27]} Na2 {[%emt 0:07:47]} (28... Nb5 $2 29. cxb5 Bxb2 30. Rc2 Rxa5 31. Rxb2 $18) 29. Bxd4 {[%emt 0:00:17]} Nxc1 {[%emt 0:00:08]} 30. Rxc1 {[%emt 0:00:05]} Rxa5 {[%emt 0:00:05]} 31. Rc2 {[%emt 0:02:28]} Ra4 {[%emt 0:01:35]} (31... Rd7 $16) 32. Be5 {[%emt 0:01:15]} b6 {[%emt 0:01:46] [#]} (32... Rb4 {keeps fighting.} 33. c5 Re8) 33. Bc6 $1 {[%emt 0:01:19] A strong pair of Bishops.} Ra3 {[%emt 0:02:05]} 34. Rb2 {[%emt 0:05:23]} Ra6 {[%emt 0:00:54]} 35. Bb8 {[%emt 0:02:30] Against Rea7} Kf7 {[%emt 0:00:22]} 36. Ke2 {[%emt 0:00:21]} h6 {[%emt 0:00:26]} 37. Ke3 {[%emt 0:01:42]} g5 {[%emt 0:00:21]} 38. Kd4 {[%emt 0:00:08]} g4 $2 {[%emt 0:00:29]} (38... Kf6 39. Be5+ Kf7) 39. Ke5 {[%emt 0:01:03]} h5 {[%emt 0:00:19]} 40. Kd6 {[%emt 0:01:05]} Kf6 {[%emt 0:00:45]} (40... Ra1 $142 41. Rd2 (41. Rxb6 Ra2 $18) 41... h4) 41. Bc7 {[%emt 0:00:40] Strongly threatening Bd8. White is clearly winning.} Ra3 {[%emt 0:00:48] aiming for ...Rd3+.} 42. Bd8 {[%emt 0:00:23]} Rd3+ {[%emt 0:00:30]} 43. Bd5 {[%emt 0:00:02]} exd5 {[%emt 0:00:33]} 44. Bxe7+ {[%emt 0:00:09]} Kf7 {[%emt 0:00:05]} 45. cxd5 {[%emt 0:00:10] Weighted Error Value: White=0.09 (flawless) /Black=0.35} 1-0

[Event "Nakhchivan Open 2022"]
[Site "Nakhchivan"]
[Date "2022.05.11"]
[Round "5.2"]
[White "Hasanov, Rashad"]
[Black "Hasanzade, Toghrul"]
[Result "1/2-1/2"]
[ECO "C11"]
[WhiteElo "2142"]
[BlackElo "2279"]
[Annotator "TA"]
[PlyCount "68"]
[EventDate "2022.05.08"]
[EventType "swiss"]
[EventCountry "AZE"]
[SourceTitle "playchess.com"]
[Source "ChessBase"]
[SourceQuality "1"]
[TimeControl "5400+30"]

{[%evp 20,68,0,0,0,0,0,0,-5,-42,-53,-58,-49,-54,-66,-79,-58,-70,-77,-72,-25,-29,-32,-16,-5,-16,-12,-12,-12,-20,-12,-14,-14,-15,0,0,0,0,0,-58,0,0,0,0,0,0,0,0,0,0,0]} 1. e4 {[%emt 0:00:03]} e6 {[%emt 0:06:35]} 2. d4 {[%emt 0:00:05]} d5 {[%emt 0:00:06]} 3. Nc3 {[%emt 0:00:04]} Nf6 {[%emt 0:00:33]} 4. e5 {[%emt 0:00:04]} Nfd7 {[%emt 0:00:06]} 5. f4 {[%emt 0:00:06]} c5 {[%emt 0:00:11]} 6. Nf3 {[%emt 0:00:03]} Nc6 {[%emt 0:00:07]} 7. Be3 {[%emt 0:00:07]} cxd4 {[%emt 0:00:59]} 8. Nxd4 {[%emt 0:00:21]} Bc5 {[%emt 0:00:22]} 9. Qd2 {[%emt 0:01:50]} O-O {[%emt 0:00:08]} 10. O-O-O {[%emt 0:02:04]} Nxd4 {[%emt 0:00:04]} 11. Bxd4 {[%emt 0:00:05]} a6 {[%emt 0:00:04] C11: French: Classical System: 4 e5 and 4 Bg5 dxe4.} 12. Kb1 {[%emt 0:05:42]} b5 {[%emt 0:00:16][%cal Bb7b5,Bb5b4][%mdl 32]} 13. Bxc5 {[%emt 0:03:23]} Nxc5 {[%emt 0:01:20]} 14. Bd3 {[%emt 0:11:35]} b4 {[%emt 0:03:33]} 15. Ne2 {[%emt 0:03:59]} a5 {[%emt 0:00:36] [#]} 16. g4 $146 {[%emt 0:06:26]} ({Predecessor:} 16. Nd4 Ba6 17. f5 Qb6 18. f6 Bxd3 19. cxd3 gxf6 20. Qh6 fxe5 21. Nf5 {1-0 (21) Cetina,K (2182)-Vaupot,L (1992) Slovenia 2019}) 16... Ba6 {[%emt 0:07:35][%cal Ob4b3]} 17. Bxa6 {[%emt 0:04:21]} Rxa6 {[%emt 0:00:29]} 18. Qe3 {[%emt 0:00:12]} Qc7 {[%emt 0:03:18]} 19. Rc1 {[%emt 0:08:50][%cal Bd1c1,Bc1c3,Bc3h3][%mdl 32]} Ne4 {[%emt 0:19:53]} ({Better is} 19... Rb8 $17) 20. c4 $11 {[%emt 0:03:36] [#] And now cxd5 would win.} bxc3 {[%emt 0:00:24]} 21. Nxc3 {[%emt 0:00:09]} Qb6 {[%emt 0:04:51]} 22. Qxb6 {[%emt 0:01:09]} Nxc3+ {[%emt 0:00:55]} 23. Rxc3 {[%emt 0:00:44]} Rxb6 {[%emt 0:00:04][%cal Ba6b6,Bb6b4,Bb4e4][%mdl 4128] Endgame KRR-KRR} 24. g5 {[%emt 0:12:30]} Rb4 {[%emt 0:07:45]} 25. Rf1 {[%emt 0:00:29]} Rfb8 {[%emt 0:07:57]} 26. b3 {[%emt 0:01:23]} a4 {[%emt 0:00:51][%cal Ra4b3]} 27. Kb2 {[%emt 0:03:28]} Kf8 {[%emt 0:09:53]} 28. Rh3 {[%emt 0:04:09]} axb3 {[%emt 0:08:26]} 29. axb3 {[%emt 0:00:04]} (29. Rxb3 $11 Ke7 30. Rff3) 29... Re4 {[%emt 0:03:29]} (29... Kg8 $15) 30. Rxh7 {[%emt 0:12:17] The position is equal.} Re2+ {[%emt 0:01:50]} 31. Ka3 {[%emt 0:00:12] [#] aiming for Rh8+.} Ra8+ {[%emt 0:00:19]} 32. Kb4 {[%emt 0:00:26] Threatening mate with Rh8+.} Rb8+ {[%emt 0:00:26]} 33. Ka3 {[%emt 0:00:05] Hoping for Rh8+.} Ra8+ {[%emt 0:07:31]} 34. Kb4 {[%emt 0:00:06] Rh8+ is the strong threat.} Rb8+ {[%emt 0:00:06] Weighted Error Value: White=0.08 (flawless) /Black=0.06 (flawless)} 1/2-1/2

[Event "Nakhchivan Open 2022"]
[Site "Nakhchivan"]
[Date "2022.05.11"]
[Round "5.3"]
[White "Mammadov, Sadig"]
[Black "Zeynalli, Rashad"]
[Result "1-0"]
[ECO "D35"]
[WhiteElo "2265"]
[BlackElo "2226"]
[Annotator "TA"]
[PlyCount "73"]
[EventDate "2022.05.08"]
[EventType "swiss"]
[EventCountry "AZE"]
[SourceTitle "playchess.com"]
[Source "ChessBase"]
[SourceQuality "1"]
[TimeControl "5400+30"]

{[%evp 17,73,-20,-6,-24,-31,-90,-96,-98,-79,-108,-25,-12,-19,-39,-18,-13,-14,-62,-62,-62,-62,-57,-62,-66,-62,-62,-62,-84,-90,-83,0,0,0,0,0,0,0,0,0,0,0,0,231,231,231,224,231,231,219,173,380,379,339,298,519,425,365,295]} 1. d4 {[%emt 0:07:11]} d5 {[%emt 0:00:11]} 2. c4 {[%emt 0:00:02]} e6 {[%emt 0:00:11]} 3. Nc3 {[%emt 0:00:40]} Nf6 {[%emt 0:00:11]} 4. e3 {[%emt 0:00:15]} Be7 {[%emt 0:00:15]} 5. Nf3 {[%emt 0:02:54]} O-O {[%emt 0:00:12]} 6. Bd3 {[%emt 0:00:18]} dxc4 {[%emt 0:00:14]} 7. Bxc4 {[%emt 0:00:03]} a6 {[%emt 0:00:17]} 8. a4 {[%emt 0:05:02]} c5 {[%emt 0:00:18]} 9. O-O {[%emt 0:00:25]} Nc6 {[%emt 0:00:17]} 10. Qe2 {[%emt 0:00:53] D37: Queen's Gambit Declined: 5 Bf4.} cxd4 {[%emt 0:03:35]} 11. Rd1 {[%emt 0:00:02]} ({White should try} 11. exd4 $15 Nxd4 12. Nxd4 Qxd4 13. Rd1) 11... e5 $17 {[%emt 0:01:23]} 12. exd4 {[%emt 0:01:10] Black is better.} exd4 {[%emt 0:01:34]} 13. Ne5 {[%emt 0:09:59]} Nxe5 {[%emt 0:03:26]} (13... Bd7 $17 {Strongly threatening ...Nxe5.} 14. Nxc6 Bxc6) 14. Qxe5 $11 {[%emt 0:00:06]} Ng4 {[%emt 0:01:31]} 15. Qxd4 {[%emt 0:03:20]} Qxd4 {[%emt 0:01:42]} 16. Rxd4 {[%emt 0:00:06]} Bc5 {[%emt 0:01:20] [#]} 17. Rf4 $146 {[%emt 0:01:17]} (17. Rd2 $11) ({Predecessor:} 17. Rd2 Re8 18. h3 Nxf2 19. Rxf2 Re1+ 20. Bf1 Be6 21. b4 Bd4 22. Bb2 Rxa1 23. Bxa1 {0-1 (70) Perez,I (2302)-Rohonyan,K (2337) Redmond 2009}) 17... Bd6 $15 {[%emt 0:03:51]} 18. Re4 {[%emt 0:08:33]} Bf5 {[%emt 0:04:31]} (18... Bxh2+ 19. Kh1 Be5 20. Re2 $17) 19. h3 {[%emt 0:07:02]} Bxe4 {[%emt 0:15:35]} 20. Nxe4 {[%emt 0:00:05] [#]} Ne5 $1 {[%emt 0:06:02]} 21. Nxd6 {[%emt 0:00:14]} Rad8 $1 {[%emt 0:01:29]} 22. b3 {[%emt 0:12:05][%cal Oc1f4] Black must now prevent Bf4!} Rxd6 {[%emt 0:04:54]} 23. Ba3 {[%emt 0:00:01]} Rb6 {[%emt 0:04:47]} 24. Bxf8 $11 {[%emt 0:06:44]} Nxc4 {[%emt 0:00:34]} 25. Bxg7 {[%emt 0:14:26]} Rxb3 {[%emt 0:00:42][%mdl 4096] Endgame KRB-KRN} 26. Bf6 {[%emt 0:00:12]} h5 {[%emt 0:03:15]} 27. Rc1 {[%emt 0:02:54]} Rb4 {[%emt 0:02:10]} 28. Rc3 {[%emt 0:01:04]} Rxa4 {[%emt 0:08:26]} 29. Rg3+ {[%emt 0:00:03]} Kf8 $2 {[%emt 0:01:48]} (29... Kh7 $1 $11) 30. Rd3 $18 {[%emt 0:00:04][%cal Rd3d8]} Kg8 {[%emt 0:00:10] [#]} 31. f4 $1 {[%emt 0:04:36]} Ne3 {[%emt 0:10:46]} 32. Rxe3 {[%emt 0:02:18]} Rxf4 {[%emt 0:00:01]} 33. Rg3+ {[%emt 0:01:30]} Kf8 $2 {[%emt 0:01:39]} (33... Kh7) 34. Bg7+ {[%emt 0:00:38]} Ke8 {[%emt 0:01:28]} 35. Rb3 {[%emt 0:00:10]} Kd7 $2 {[%emt 0:03:15]} (35... b5 {might work better.} 36. g3 Ra4) 36. Rxb7+ {[%emt 0:00:51]} Kc6 {[%emt 0:00:00]} 37. Rb3 {[%emt 0:00:36] Weighted Error Value: White=0.08 (flawless) /Black=0.37} 1-0

[Event "Nakhchivan Open 2022"]
[Site "Nakhchivan"]
[Date "2022.05.11"]
[Round "5.4"]
[White "Lorparizangeneh, Shahin"]
[Black "Jafarli, Babak"]
[Result "1-0"]
[ECO "A05"]
[WhiteElo "2502"]
[BlackElo "2181"]
[Annotator "TA"]
[PlyCount "69"]
[EventDate "2022.05.08"]
[EventType "swiss"]
[EventCountry "AZE"]
[SourceTitle "playchess.com"]
[Source "ChessBase"]
[SourceQuality "1"]
[TimeControl "5400+30"]

{[%evp 12,69,23,17,33,19,22,20,202,183,197,180,198,194,219,212,301,290,286,245,326,222,357,197,361,300,283,277,525,516,521,523,510,517,646,343,347,339,334,327,321,313,458,449,730,720,754,743,743,727,2050,2016,1783,1646,1055,1052,1046,1043,1295,1181]} 1. Nf3 {[%emt 0:01:03]} Nf6 {[%emt 0:00:38]} 2. g3 {[%emt 0:00:18]} b6 {[%emt 0:00:47]} 3. Bg2 {[%emt 0:00:06]} Bb7 {[%emt 0:00:01]} 4. O-O {[%emt 0:00:24]} g6 {[%emt 0:00:24]} 5. d3 {[%emt 0:06:05]} Bg7 {[%emt 0:00:12]} 6. e4 {[%emt 0:00:06]} d6 {[%emt 0:00:13]} 7. Nc3 {[%emt 0:00:50]} Nbd7 {[%emt 0:02:31] A05: Réti Opening: 1 Nf3 Nf6.} 8. Nh4 {[%emt 0:02:47][%cal Oe4e5]} e5 {[%emt 0:00:31]} 9. f4 {[%emt 0:00:55]} exf4 $2 {[%emt 0:01:41] [#]} (9... Qe7 $11) 10. e5 $146 {[%emt 0:11:44][%mdl 64] Discovered Attack} ({Predecessor:} 10. Bxf4 Rb8 11. Qd2 h6 12. d4 Nh5 13. Be3 Qe7 14. Rae1 Kd8 15. Bh3 Bf6 16. Nf3 {1-0 (56) Drljevic,L (2257)-Nedeljkovic,R (1877) Zlatibor 2007}) 10... dxe5 {[%emt 0:04:09] White must now prevent ...Bxg2.} (10... Bxg2 $2 11. exf6 Bxf1 12. fxg7 $18) 11. Bxb7 {[%emt 0:00:29]} Rb8 {[%emt 0:00:07]} 12. Bc6 {[%emt 0:03:29]} fxg3 {[%emt 0:00:19]} 13. Bg5 {[%emt 0:02:38] A strong pair of Bishops.} h6 {[%emt 0:01:16]} (13... O-O $142 14. hxg3 (14. Bxd7 Qxd7 15. hxg3 Nd5 $16) 14... h6) 14. Bxf6 {[%emt 0:12:37]} Bxf6 {[%emt 0:02:49]} 15. Ng2 {[%emt 0:06:22]} (15. hxg3 Bxh4 16. gxh4 (16. Bxd7+ Kxd7 17. gxh4 f5 $16) 16... O-O $18) 15... Bg5 {[%emt 0:00:46]} 16. Qg4 {[%emt 0:01:07]} (16. hxg3 $6 O-O 17. Qe1 Qe7 $18) 16... f5 {[%emt 0:00:09]} (16... gxh2+ $142 17. Kh1 (17. Kxh2 f5 $16) 17... f5) 17. Qc4 {[%emt 0:02:21]} (17. Qxg3 $142 Qf6 18. Bxd7+ Kxd7 19. h4) 17... Qe7 {[%emt 0:01:36]} (17... gxh2+ 18. Kh1 Kf8) 18. Rae1 {[%emt 0:03:09]} (18. hxg3 Qc5+ 19. Qxc5 bxc5 $18) 18... gxh2+ {[%emt 0:01:12]} 19. Kh1 {[%emt 0:00:08] aiming for Qd5.} Kf8 $2 {[%emt 0:00:37]} (19... Rd8 20. Nf4 (20. Kxh2 Kf8 $16) 20... Bxf4) 20. Nd5 {[%emt 0:08:19]} Qd6 {[%emt 0:00:28]} 21. Bxd7 {[%emt 0:00:22][%mdl 64] [#] Deflection} Qxd7 {[%emt 0:00:06]} 22. Rxe5 {[%emt 0:00:04]} Kg7 {[%emt 0:01:35]} 23. Rfe1 {[%emt 0:01:02]} Rhe8 {[%emt 0:03:29] Against Re7+} 24. Rxe8 {[%emt 0:06:42]} (24. Nxc7 Rxe5 25. Qc3 (25. Rxe5 Rc8 $15) 25... Bf6 26. Rxe5 Rc8 $11) (24. Qxc7 Qxc7 25. Nxc7 Rxe5 26. Rxe5 Rc8 $16) 24... Rxe8 {[%emt 0:00:10]} 25. Rxe8 {[%emt 0:00:22] Dancing on a razor blade.} ({Much less strong is} 25. Nxc7 $6 Rxe1+ 26. Nxe1 Qe7 $18) ({Less strong is} 25. Qxc7 Qxc7 26. Nxc7 Rxe1+ 27. Nxe1 Bh4 $16) (25. Kxh2 Qd6+ 26. Kh1 Rxe1+ 27. Nxe1 c6 28. Qc3+ Kh7 $17) 25... Qxe8 {[%emt 0:00:05]} 26. Qxc7+ {[%emt 0:02:09]} Kg8 {[%emt 0:00:10]} (26... Qf7 $142 27. Qd6 (27. Kxh2 Qxc7+ 28. Nxc7 Bc1 $16) 27... Qf8 28. Qd7+ Qf7) 27. Qxa7 {[%emt 0:05:56] White is clearly winning.} Qe2 {[%emt 0:01:13]} (27... f4 $142 28. Ndxf4 Bxf4 29. Nxf4 Qc6+ 30. Ng2 Qc5 31. Qa8+ Kg7 32. Qb7+ Kg8 33. Kxh2 Qe5+ 34. Kh3 Qf5+ 35. Kg3 Qe5+ 36. Kh3 Qh5+ 37. Kg3 Qe5+ 38. Kh3) 28. Qxb6 {[%emt 0:02:13]} Qd1+ {[%emt 0:01:01]} 29. Kxh2 {[%emt 0:00:01]} Qh5+ {[%emt 0:00:07]} 30. Kg3 {[%emt 0:00:11]} Bh4+ {[%emt 0:00:30]} 31. Nxh4 {[%emt 0:01:08]} Qg4+ {[%emt 0:00:04]} 32. Kf2 {[%emt 0:00:02] White wants to mate with Qd8+.} Qxh4+ {[%emt 0:00:05]} 33. Ke3 {[%emt 0:00:32] Nf6+ would kill now.} f4+ {[%emt 0:01:18]} 34. Nxf4 {[%emt 0:00:54]} Qg3+ {[%emt 0:00:29]} 35. Ke4 {[%emt 0:00:09] White took control after the opening.  Weighted Error Value: White=0.36/Black=0.85} 1-0